lending/lending_fUSD_20250808
["ID","MTS","AMOUNT","RATE_DAILY","PERIOD"]
[377948192,1754625036481,-400.0,0.00018888,2]
[377948193,1754625036491,-400.0,0.00018888,2]
[377948194,1754625036500,-400.0,0.00018888,2]
[377948195,1754625036509,-400.0,0.00018888,2]
[377948196,1754625036518,-400.0,0.00018888,2]
[377948197,1754625036529,-400.0,0.00018888,2]
[377948198,1754625036538,-400.0,0.00018888,2]
[377948199,1754625036552,-453.55,0.00018888,2]
[377948200,1754625036562,-419.22,0.00018888,2]
[377948201,1754625036571,-400.0,0.00018888,2]
[377948202,1754625036581,-341.4700746,0.00018888,2]
[377948203,1754625036591,-553.57,0.00018888,2]
[377948204,1754625036604,-400.0,0.00018888,2]
[377948205,1754625036615,-841.13,0.00018888,2]
[377948206,1754625036625,-1046.36,0.00018888,2]
[377948207,1754625036635,-400.0,0.00018888,2]
[377948208,1754625036647,-400.0,0.00018888,2]
[377948209,1754625036656,-626.02,0.00018888,2]
[377948210,1754625036666,-400.0,0.00018888,2]
[377948211,1754625036676,-400.0,0.00018888,2]
[377948212,1754625036686,-400.0,0.00018888,2]
[377948213,1754625036696,-1205.88,0.00018888,2]
[377948214,1754625036707,-400.0,0.00018888,2]
[377948215,1754625036718,-400.0,0.00018888,2]
[377948216,1754625036729,-514.25,0.00018888,2]
[377948217,1754625036739,-702.41,0.00018888,2]
[377948218,1754625036749,-400.0,0.00018888,2]
[377948219,1754625036759,-489.68,0.00018888,2]
[377948220,1754625036769,-534.87,0.00018888,2]
[377948221,1754625036778,-400.0,0.00018888,2]
[377948222,1754625036788,-400.0,0.00018888,2]
[377948223,1754625036799,-928.83,0.00018888,2]
[377948224,1754625036809,-400.0,0.00018888,2]
[377948225,1754625036819,-641.05,0.00018888,2]
[377948226,1754625036828,-1004.16,0.00018888,2]
[377948227,1754625036838,-400.0,0.00018888,2]
[377948228,1754625036848,-400.0,0.00018888,2]
[377948229,1754625036857,-400.0,0.00018888,2]
[377948230,1754625036867,-400.0,0.00018888,2]
[377948231,1754625036876,-504.99,0.00018888,2]
[377948232,1754625036886,-400.0,0.00018888,2]
[377948233,1754625036896,-400.0,0.00018888,2]
[377948234,1754625036907,-400.0,0.00018888,2]
[377948235,1754625036918,-400.0,0.00018888,2]
[377948236,1754625036928,-522.66,0.00018888,2]
[377948237,1754625036938,-1385.19,0.00018888,2]
[377948238,1754625036947,-745.9,0.00018888,2]
[377948239,1754625036957,-400.0,0.00018888,2]
[377948240,1754625036966,-683.09,0.00018888,2]
[377948241,1754625036976,-898.74,0.00018888,2]
[377948242,1754625036986,-650.29,0.00018888,2]
[377948243,1754625036996,-481.37,0.00018888,2]
[377948244,1754625037006,-400.0,0.00018888,2]
[377948245,1754625037016,-400.0,0.00018888,2]
[377948246,1754625037027,-400.0,0.00018888,2]
[377948247,1754625037037,-1464.57,0.00018888,2]
[377948248,1754625037048,-638.14,0.00018888,2]
[377948249,1754625037059,-400.0,0.00018888,2]
[377948250,1754625037068,-400.0,0.00018888,2]
[377948251,1754625037078,-400.0,0.00018888,2]
[377948252,1754625037088,-400.0,0.00018888,2]
[377948253,1754625037101,-400.0,0.00018888,2]
[377948254,1754625037111,-660.08,0.00018888,2]
[377948255,1754625037121,-664.84,0.00018888,2]
[377948256,1754625037131,-400.0,0.00018888,2]
[377948257,1754625037140,-431.17,0.00018888,2]
[377948258,1754625037150,-400.0,0.00018888,2]
[377948259,1754625037159,-477.35,0.00018888,2]
[377948260,1754625037169,-400.0,0.00018888,2]
[377948261,1754625037178,-400.0,0.00018888,2]
[377948262,1754625037188,-400.0,0.00018888,2]
[377948263,1754625037198,-400.0,0.00018888,2]
[377948264,1754625037208,-1427.63,0.00018888,2]
[377948265,1754625037218,-871.94,0.00018888,2]
[377948266,1754625037228,-400.0,0.00018888,2]
[377948267,1754625037237,-549.66,0.00018888,2]
[377948268,1754625037247,-400.0,0.00018888,2]
[377948269,1754625037257,-400.0,0.00018888,2]
[377948270,1754625037267,-483.18,0.00018888,2]
[377948271,1754625037276,-1040.0,0.00018888,2]
[377948272,1754625037286,-400.0,0.00018888,2]
[377948273,1754625037295,-620.73,0.00018888,2]
[377948274,1754625037304,-407.400293,0.00018888,2]
[377948275,1754625037315,-400.0,0.00018888,2]
[377948276,1754625037324,-842.13,0.00018888,2]
[377948277,1754625037333,-914.74,0.00018888,2]
[377948278,1754625037343,-792.6,0.00018888,2]
[377948279,1754625037352,-929.98,0.00018888,2]
[377948280,1754625037362,-400.0,0.00018888,2]
[377948281,1754625037371,-485.588725,0.00018888,2]
[377948282,1754625037381,-674.4,0.00018888,2]
[377948283,1754625037390,-400.0,0.00018888,2]
[377948284,1754625037400,-1034.56,0.00018888,2]
[377948285,1754625037410,-839.44,0.00018888,2]
[377948286,1754625037420,-912.59,0.00018888,2]
[377948287,1754625037429,-982.79,0.00018888,2]
[377948288,1754625037439,-400.0,0.00018888,2]
[377948289,1754625037448,-400.0,0.00018888,2]
[377948290,1754625037458,-400.0,0.00018888,2]
[377948291,1754625037468,-795.29,0.00018888,2]
[377948292,1754625037477,-511.93,0.00018888,2]
[377948293,1754625037487,-462.03843912,0.00018888,2]
[377948294,1754625037497,-402.88683902,0.00018888,2]
[377948295,1754625037506,-910.95,0.00018888,2]
[377948296,1754625037516,-539.64,0.00018888,2]
[377948297,1754625037525,-740.85,0.00018888,2]
[377948298,1754625037535,-950.93,0.00018888,2]
[377948299,1754625037545,-536.82,0.00018888,2]
[377948300,1754625037555,-1135.55,0.00018888,2]
[377948301,1754625037564,-400.0,0.00018888,2]
[377948302,1754625037574,-1022.58,0.00018888,2]
[377948303,1754625037584,-400.0,0.00018888,2]
[377948304,1754625037594,-808.03,0.00018888,2]
[377948305,1754625037608,-1028.68,0.00018888,2]
[377948306,1754625037618,-312.28408032,0.00018888,2]
[377948307,1754625037627,-522.77,0.00018888,2]
[377948308,1754625037642,-400.0,0.00018888,2]
[377948309,1754625037652,-400.0,0.00018888,2]
[377948310,1754625037661,-400.0,0.00018888,2]
[377948311,1754625037671,-543.03,0.00018888,2]
[377948312,1754625037683,-843.23,0.00018888,2]
[377948313,1754625037692,-483.32,0.00018888,2]
[377948314,1754625037702,-811.54,0.00018888,2]
[377948315,1754625037713,-872.62,0.00018888,2]
[377948316,1754625037723,-400.0,0.00018888,2]
[377948317,1754625037734,-927.35,0.00018888,2]
[377948318,1754625037745,-1723.02,0.00018888,2]
[377948319,1754625037755,-5948.97,0.00018888,2]
[377948320,1754625037764,-400.0,0.00018888,2]
[377948321,1754625037774,-400.0,0.00018888,2]
[377948322,1754625037784,-400.0,0.00018888,2]
[377948323,1754625037795,-528.97,0.00018888,2]
[377948324,1754625037807,-710.6,0.00018888,2]
[377948325,1754625037818,-891.02,0.00018888,2]
[377948326,1754625037828,-400.0,0.00018888,2]
[377948327,1754625037839,-1276.29,0.00018888,2]
[377948328,1754625037850,-682.77,0.00018888,2]
[377948329,1754625037859,-400.0,0.00018888,2]
[377948330,1754625037869,-1051.91,0.00018888,2]
[377948331,1754625037879,-400.0,0.00018888,2]
[377948332,1754625037889,-1225.52,0.00018888,2]
[377948333,1754625037899,-400.0,0.00018888,2]
[377948334,1754625037909,-493.6375318,0.00018888,2]
[377948335,1754625037919,-1180.57,0.00018888,2]
[377948336,1754625037929,-400.0,0.00018888,2]
[377948337,1754625037939,-400.0,0.00018888,2]
[377948338,1754625037949,-809.08,0.00018888,2]
[377948339,1754625037959,-867.33,0.00018888,2]
[377948340,1754625037968,-777.65,0.00018888,2]
[377948341,1754625037978,-400.0,0.00018888,2]
[377948342,1754625037987,-1793.49,0.00018888,2]
[377948343,1754625037998,-473.09,0.00018888,2]
[377948344,1754625038009,-400.0,0.00018888,2]
[377948345,1754625038020,-496.17,0.00018888,2]
[377948346,1754625038030,-400.0,0.00018888,2]
[377948347,1754625038041,-400.0,0.00018888,2]
[377948348,1754625038051,-601.81,0.00018888,2]
[377948349,1754625038062,-615.08,0.00018888,2]
[377948350,1754625038071,-934.45,0.00018888,2]
[377948351,1754625038082,-827.03,0.00018888,2]
[377948352,1754625038092,-400.0,0.00018888,2]
[377948353,1754625038105,-400.0,0.00018888,2]
[377948354,1754625038115,-1321.28,0.00018888,2]
[377948355,1754625038124,-689.97,0.00018888,2]
[377948356,1754625038134,-702.75,0.00018888,2]
[377948357,1754625038143,-400.0,0.00018888,2]
[377948358,1754625038153,-850.93,0.00018888,2]
[377948359,1754625038163,-400.0,0.00018888,2]
[377948360,1754625038174,-570.05,0.00018888,2]
[377948361,1754625038183,-882.4,0.00018888,2]
[377948362,1754625038195,-496.35,0.00018888,2]
[377948363,1754625038206,-605.32,0.00018888,2]
[377948364,1754625038216,-400.0,0.00018888,2]
[377948366,1754625038226,-1029.47,0.00018888,2]
[377948368,1754625038236,-1189.53,0.00018888,2]
[377948369,1754625038246,-400.0,0.00018888,2]
[377948370,1754625038256,-400.0,0.00018888,2]
[377948371,1754625038266,-628.86,0.00018888,2]
[377948372,1754625038275,-400.0,0.00018888,2]
[377948373,1754625038285,-400.0,0.00018888,2]
[377948374,1754625038295,-400.0,0.00018888,2]
[377948375,1754625038305,-450.45,0.00018888,2]
[377948376,1754625038314,-1202.17,0.00018888,2]
[377948377,1754625038324,-400.0,0.00018888,2]
[377948378,1754625038334,-400.0,0.00018888,2]
[377948379,1754625038343,-400.0,0.00018888,2]
[377948380,1754625038353,-400.0,0.00018888,2]
[377948381,1754625038362,-879.7,0.00018888,2]
[377948382,1754625038371,-427.22,0.00018888,2]
[377948383,1754625038381,-1251.71,0.00018888,2]
[377948384,1754625038391,-481.69,0.00018888,2]
[377948385,1754625038400,-400.0,0.00018888,2]
[377948386,1754625038410,-400.0,0.00018888,2]
[377948387,1754625038419,-966.51,0.00018888,2]
[377948388,1754625038429,-997.51,0.00018888,2]
[377948389,1754625038439,-920.25,0.00018888,2]
[377948390,1754625038448,-400.0,0.00018888,2]
[377948391,1754625038458,-1862.36,0.00018888,2]
[377948392,1754625038467,-1365.89,0.00018888,2]
[377948393,1754625038477,-1282.59,0.00018888,2]
[377948394,1754625038487,-462.80801546,0.00018888,2]
[377948395,1754625038497,-403.46,0.00018888,2]
[377948396,1754625038506,-759.39,0.00018888,2]
[377948397,1754625038516,-2704.8,0.00018888,2]
[377948398,1754625038525,-1024.76,0.00018888,2]
[377948399,1754625038535,-400.0,0.00018888,2]
[377948400,1754625038546,-1553.3,0.00018888,2]
[377948401,1754625038555,-1606.7,0.00018888,2]
[377948402,1754625038565,-785.78,0.00018888,2]
[377948403,1754625038575,-421.9,0.00018888,2]
[377948404,1754625038585,-400.0,0.00018888,2]
[377948405,1754625038595,-705.55,0.00018888,2]
[377948406,1754625038609,-799.59,0.00018888,2]
[377948407,1754625038618,-400.0,0.00018888,2]
[377948408,1754625038628,-400.0,0.00018888,2]
[377948409,1754625038639,-1446.87,0.00018888,2]
[377948410,1754625038648,-666.99,0.00018888,2]
[377948411,1754625038658,-677.98,0.00018888,2]
[377948412,1754625038668,-400.0,0.00018888,2]
[377948413,1754625038678,-1476.68,0.00018888,2]
[377948414,1754625038688,-400.0,0.00018888,2]
[377948415,1754625038697,-400.0,0.00018888,2]
[377948416,1754625038707,-1328.92,0.00018888,2]
[377948417,1754625038717,-757.74,0.00018888,2]
[377948418,1754625038727,-400.0,0.00018888,2]
[377948419,1754625038738,-817.51,0.00018888,2]
[377948420,1754625038748,-1473.63,0.00018888,2]
[377948421,1754625038758,-400.0,0.00018888,2]
[377948422,1754625038767,-1715.28,0.00018888,2]
[377948423,1754625038777,-400.0,0.00018888,2]
[377948424,1754625038786,-1443.9,0.00018888,2]
[377948425,1754625038796,-400.0,0.00018888,2]
[377948426,1754625038805,-685.06,0.00018888,2]
[377948427,1754625038816,-400.0,0.00018888,2]
[377948428,1754625038826,-586.31,0.00018888,2]
[377948429,1754625038835,-416.15,0.00018888,2]
[377948430,1754625038845,-708.54,0.00018888,2]
[377948431,1754625038855,-400.0,0.00018888,2]
[377948432,1754625038864,-867.87,0.00018888,2]
[377948433,1754625038874,-870.48,0.00018888,2]
[377948434,1754625038884,-715.43,0.00018888,2]
[377948435,1754625038893,-1714.92,0.00018888,2]
[377948436,1754625038903,-670.21,0.00018888,2]
[377948437,1754625038913,-400.0,0.00018888,2]
[377948438,1754625038923,-400.0,0.00018888,2]
[377948439,1754625038933,-400.0,0.00018888,2]
[377948440,1754625038942,-1469.53,0.00018888,2]
[377948441,1754625038953,-1171.67,0.00018888,2]
[377948442,1754625038963,-400.0,0.00018888,2]
[377948443,1754625038972,-400.0,0.00018888,2]
[377948444,1754625038982,-1150.65,0.00018888,2]
[377948445,1754625038992,-654.61,0.00018888,2]
[377948446,1754625039002,-1028.01,0.00018888,2]
[377948447,1754625039012,-1124.81,0.00018888,2]
[377948448,1754625039021,-1254.18,0.00018888,2]
[377948449,1754625039032,-400.0,0.00018888,2]
[377948450,1754625039042,-485.38,0.00018888,2]
[377948451,1754625039052,-1283.63,0.00018888,2]
[377948452,1754625039062,-1238.23,0.00018888,2]
[377948453,1754625039072,-1697.94,0.00018888,2]
[377948454,1754625039081,-400.0,0.00018888,2]
[377948455,1754625039091,-400.0,0.00018888,2]
[377948456,1754625039100,-437.78,0.00018888,2]
[377948457,1754625039109,-866.5,0.00018888,2]
[377948458,1754625039120,-447.96,0.00018888,2]
[377948459,1754625039130,-400.0,0.00018888,2]
[377948460,1754625039362,-557.35,0.00018888,2]
[377948461,1754625039372,-608.95,0.00018888,2]
[377948462,1754625039381,-400.0,0.00018888,2]
[377948463,1754625039391,-400.0,0.00018888,2]
[377948464,1754625039401,-424.81,0.00018888,2]
[377948465,1754625039410,-830.32,0.00018888,2]
[377948466,1754625039419,-496.95,0.00018888,2]
[377948467,1754625039429,-1411.01,0.00018888,2]
[377948468,1754625039438,-1422.87,0.00018888,2]
[377948469,1754625039448,-766.29,0.00018888,2]
[377948470,1754625039457,-400.0,0.00018888,2]
[377948471,1754625039466,-400.0,0.00018888,2]
[377948472,1754625039476,-400.0,0.00018888,2]
[377948473,1754625039485,-400.0,0.00018888,2]
[377948474,1754625039495,-1308.22,0.00018888,2]
[377948475,1754625039504,-704.21,0.00018888,2]
[377948476,1754625039514,-423.75,0.00018888,2]
[377948477,1754625039523,-1145.8,0.00018888,2]
[377948478,1754625039532,-433.19,0.00018888,2]
[377948479,1754625039542,-884.69,0.00018888,2]
[377948480,1754625039551,-400.0,0.00018888,2]
[377948481,1754625039560,-496.59,0.00018888,2]
[377948482,1754625039570,-403.96,0.00018888,2]
[377948483,1754625039579,-845.31,0.00018888,2]
[377948484,1754625039589,-1100.09,0.00018888,2]
[377948485,1754625039603,-400.0,0.00018888,2]
[377948486,1754625039612,-845.72,0.00018888,2]
[377948487,1754625039623,-806.36,0.00018888,2]
[377948488,1754625039632,-400.0,0.00018888,2]
[377948489,1754625039643,-737.55,0.00018888,2]
[377948490,1754625039654,-1014.24,0.00018888,2]
[377948491,1754625039663,-400.0,0.00018888,2]
[377948492,1754625039673,-400.0,0.00018888,2]
[377948493,1754625039683,-1570.49,0.00018888,2]
[377948494,1754625039692,-772.82,0.00018888,2]
[377948495,1754625039702,-507.24,0.00018888,2]
[377948496,1754625039711,-1069.49,0.00018888,2]
[377948497,1754625039721,-400.0,0.00018888,2]
[377948498,1754625039730,-400.0,0.00018888,2]
[377948499,1754625039740,-400.0,0.00018888,2]
[377948500,1754625039749,-1445.12,0.00018888,2]
[377948501,1754625039759,-809.29,0.00018888,2]
[377948502,1754625039768,-400.0,0.00018888,2]
[377948503,1754625039777,-400.0,0.00018888,2]
[377948504,1754625039786,-1085.82,0.00018888,2]
[377948505,1754625039797,-400.0,0.00018888,2]
[377948506,1754625039808,-1660.39,0.00018888,2]
[377948507,1754625039817,-400.0,0.00018888,2]
[377948508,1754625039827,-1199.77,0.00018888,2]
[377948509,1754625039836,-579.4,0.00018888,2]
[377948510,1754625039845,-1049.45,0.00018888,2]
[377948511,1754625039855,-400.0,0.00018888,2]
[377948512,1754625039864,-699.56,0.00018888,2]
[377948513,1754625039873,-400.0,0.00018888,2]
[377948514,1754625039884,-808.24,0.00018888,2]
[377948515,1754625039894,-405.46502995,0.00018888,2]
[377948516,1754625039904,-1166.89,0.00018888,2]
[377948517,1754625039914,-400.0,0.00018888,2]
[377948518,1754625039923,-400.0,0.00018888,2]
[377948519,1754625039933,-511.24,0.00018888,2]
[377948520,1754625039942,-400.0,0.00018888,2]
[377948521,1754625039952,-400.0,0.00018888,2]
[377948522,1754625039961,-767.98,0.00018888,2]
[377948523,1754625039970,-688.77,0.00018888,2]
[377948524,1754625039979,-550.24,0.00018888,2]
[377948525,1754625039989,-1379.74,0.00018888,2]
[377948526,1754625039998,-400.0,0.00018888,2]
[377948527,1754625040007,-400.0,0.00018888,2]
[377948528,1754625040017,-733.43,0.00018888,2]
[377948529,1754625040026,-400.0,0.00018888,2]
[377948530,1754625040035,-539.76,0.00018888,2]
[377948531,1754625040044,-576.23,0.00018888,2]
[377948532,1754625040055,-463.44,0.00018888,2]
[377948533,1754625040064,-416.76,0.00018888,2]
[377948534,1754625040073,-692.02,0.00018888,2]
[377948535,1754625040083,-715.78,0.00018888,2]
[377948536,1754625040092,-647.56,0.00018888,2]
[377948537,1754625040101,-400.0,0.00018888,2]
[377948538,1754625040110,-696.44,0.00018888,2]
[377948539,1754625040119,-515.58,0.00018888,2]
[377948540,1754625040128,-400.0,0.00018888,2]
[377948541,1754625040138,-560.24,0.00018888,2]
[377948542,1754625040147,-400.0,0.00018888,2]
[377948543,1754625040157,-400.0,0.00018888,2]
[377948544,1754625040166,-478.62,0.00018888,2]
[377948545,1754625040175,-400.0,0.00018888,2]
[377948546,1754625040185,-1589.18,0.00018888,2]
[377948547,1754625040194,-1200.25,0.00018888,2]
[377948548,1754625040204,-400.0,0.00018888,2]
[377948549,1754625040215,-765.95,0.00018888,2]
[377948550,1754625040228,-792.83,0.00018888,2]
[377948551,1754625040237,-400.0,0.00018888,2]
[377948552,1754625040247,-850.07,0.00018888,2]
[377948553,1754625040256,-523.93914152,0.00018888,2]
[377948554,1754625040828,-627.24768129,0.00018888,2]
[377948555,1754625040840,-306.68,0.00018888,2]
[377948692,1754625043815,-263.74465304,0.00018887,2]
[377948695,1754625043827,-357.31534696,0.00018887,2]
[377948697,1754625043837,-115.22317719,0.00018888,2]
[377948699,1754625043846,-361.10467599,0.00018888,2]
[377948701,1754625043857,-38.89532401,0.00018888,2]
[377948703,1754625043867,-443.35,0.00018888,2]
[377948705,1754625043876,-1004.25,0.00018888,2]
[377948707,1754625043885,-836.69,0.00018888,2]
[377948709,1754625043895,-585.27,0.00018888,2]
[377948711,1754625043905,-400.0,0.00018888,2]
[377948713,1754625043916,-1338.99,0.00018888,2]
[377948715,1754625043926,-500.04,0.00018888,2]
[377948717,1754625043936,-806.84,0.00018888,2]
[377948719,1754625043945,-400.0,0.00018888,2]
[377948721,1754625043955,-477.62,0.00018888,2]
[377948723,1754625043964,-400.0,0.00018888,2]
[377948725,1754625043973,-813.7,0.00018888,2]
[377948727,1754625043982,-400.0,0.00018888,2]
[377948729,1754625043992,-1134.66,0.00018888,2]
[377948731,1754625044001,-400.0,0.00018888,2]
[377948733,1754625044011,-759.77,0.00018888,2]
[377948735,1754625044020,-539.34,0.00018888,2]
[377948737,1754625044029,-400.0,0.00018888,2]
[377948739,1754625044038,-1156.26,0.00018888,2]
[377948741,1754625044047,-1461.09,0.00018888,2]
[377948743,1754625044057,-1124.29,0.00018888,2]
[377948765,1754625044239,-1807.67,0.00018888,2]
[377948767,1754625044261,-400.0,0.00018888,2]
[377948769,1754625044271,-842.58,0.00018888,2]
[377948771,1754625044280,-853.67,0.00018888,2]
[377948772,1754625044289,-400.0,0.00018888,2]
[377948773,1754625044299,-400.0,0.00018888,2]
[377948774,1754625044309,-743.05,0.00018888,2]
[377948775,1754625044318,-400.0,0.00018888,2]
[377948776,1754625044327,-1153.5,0.00018888,2]
[377948777,1754625044337,-400.0,0.00018888,2]
[377948778,1754625044346,-911.53,0.00018888,2]
[377948779,1754625044355,-400.0,0.00018888,2]
[377948780,1754625044364,-400.0,0.00018888,2]
[377948781,1754625044373,-537.48,0.00018888,2]
[377948782,1754625044382,-400.0,0.00018888,2]
[377948783,1754625044391,-1122.1,0.00018888,2]
[377948784,1754625044401,-338.3575478,0.00018888,2]
[377948785,1754625044410,-790.9,0.00018888,2]
[377948786,1754625044419,-943.22,0.00018888,2]
[377948787,1754625044429,-400.0,0.00018888,2]
[377948788,1754625044438,-753.91,0.00018888,2]
[377948789,1754625044447,-400.0,0.00018888,2]
[377948790,1754625044456,-400.0,0.00018888,2]
[377948791,1754625044466,-400.0,0.00018888,2]
[377948792,1754625044476,-1038.27,0.00018888,2]
[377948793,1754625044486,-502.53,0.00018888,2]
[377948794,1754625044496,-400.0,0.00018888,2]
[377948795,1754625044505,-3170.99,0.00018888,2]
[377948796,1754625044514,-400.0,0.00018888,2]
[377948797,1754625044524,-400.0,0.00018888,2]
[377948798,1754625044533,-400.0,0.00018888,2]
[377948799,1754625044543,-400.0,0.00018889,2]
[377948800,1754625044552,-828.88,0.00018889,2]
[377948801,1754625044562,-400.0,0.00018889,2]
[377948802,1754625044571,-400.0,0.00018889,2]
[377948803,1754625044580,-400.0,0.00018889,2]
[377948804,1754625044590,-734.18,0.00018889,2]
[377948805,1754625044603,-400.0,0.00018889,2]
[377948806,1754625044612,-427.57705641,0.00018889,2]
[377948807,1754625044622,-400.0,0.00018889,2]
[377948808,1754625044631,-400.0,0.00018889,2]
[377948809,1754625044640,-400.0,0.00018889,2]
[377948810,1754625044650,-801.4,0.00018889,2]
[377948811,1754625044659,-400.0,0.00018889,2]
[377948812,1754625044669,-400.0,0.00018889,2]
[377948813,1754625044679,-400.0,0.00018889,2]
[377948814,1754625044689,-400.0,0.00018889,2]
[377948815,1754625044698,-400.0,0.00018889,2]
[377948816,1754625044707,-400.0,0.00018889,2]
[377948817,1754625044717,-914.9,0.00018889,2]
[377948818,1754625044726,-400.0,0.00018889,2]
[377948819,1754625044737,-684.27,0.00018889,2]
[377948820,1754625044747,-400.0,0.00018889,2]
[377948821,1754625044757,-400.0,0.00018889,2]
[377948822,1754625044767,-424.84,0.00018889,2]
[377948823,1754625044778,-400.0,0.00018889,2]
[377948824,1754625044788,-400.0,0.00018889,2]
[377948825,1754625044798,-400.0,0.00018889,2]
[377948826,1754625044808,-155.37451088,0.00018889,2]
[377948827,1754625044818,-400.0,0.00018889,2]
[377948828,1754625044827,-400.0,0.00018889,2]
[377948829,1754625044837,-606.6,0.00018889,2]
[377948830,1754625044846,-445.36,0.00018889,2]
[377948831,1754625044857,-400.0,0.00018889,2]
[377948832,1754625044867,-564.09,0.00018889,2]
[377948833,1754625044876,-400.0,0.00018889,2]
[377948834,1754625044885,-902.47,0.00018889,2]
[377948835,1754625044896,-400.0,0.00018889,2]
[377948836,1754625044906,-400.0,0.00018889,2]
[377948837,1754625044916,-400.0,0.00018889,2]
[377948838,1754625044927,-619.72,0.00018889,2]
[377948839,1754625044937,-414.42,0.00018889,2]
[377948840,1754625044947,-400.0,0.00018889,2]
[377948841,1754625044956,-400.0,0.00018889,2]
[377948842,1754625044966,-400.0,0.00018889,2]
[377948843,1754625044975,-400.0,0.00018889,2]
[377948844,1754625044984,-400.0,0.00018889,2]
[377948845,1754625044994,-400.0,0.00018889,2]
[377948846,1754625045004,-400.0,0.00018889,2]
[377948847,1754625045013,-412.8,0.00018889,2]
[377948848,1754625045023,-517.21,0.00018889,2]
[377948849,1754625045032,-400.0,0.00018889,2]
[377948850,1754625045041,-400.0,0.00018889,2]
[377948851,1754625045051,-457.88,0.00018889,2]
[377948852,1754625045060,-424.3,0.00018889,2]
[377948853,1754625045071,-400.0,0.00018889,2]
[377948854,1754625045080,-404.64,0.00018889,2]
[377948855,1754625045089,-400.0,0.00018889,2]
[377948856,1754625045098,-400.0,0.00018889,2]
[377948857,1754625045108,-400.0,0.00018889,2]
[377948858,1754625045117,-1596.54,0.00018889,2]
[377948859,1754625045127,-418.08,0.00018889,2]
[377948860,1754625045136,-400.0,0.00018889,2]
[377948861,1754625045146,-400.0,0.00018889,2]
[377948862,1754625045155,-1259.82,0.00018889,2]
[377948863,1754625045164,-400.0,0.00018889,2]
[377948864,1754625045174,-400.0,0.00018889,2]
[377948865,1754625045184,-400.0,0.00018889,2]
[377948866,1754625045193,-478.1,0.00018889,2]
[377948867,1754625045202,-488.88,0.00018889,2]
[377948868,1754625045211,-568.87,0.00018889,2]
[377948869,1754625045220,-408.96,0.00018889,2]
[377948870,1754625045230,-3833.66,0.00018889,2]
[377948871,1754625045240,-400.0,0.00018889,2]
[377948872,1754625045249,-535.54,0.00018889,2]
[377948873,1754625045258,-400.0,0.00018889,2]
[377948874,1754625045267,-400.0,0.00018889,2]
[377948875,1754625045276,-535.2,0.00018889,2]
[377948876,1754625045285,-400.0,0.00018889,2]
[377948877,1754625045294,-400.0,0.00018889,2]
[377948878,1754625045303,-650.13,0.00018889,2]
[377948879,1754625045312,-400.0,0.00018889,2]